Cogmind - Beta 13 @@@ ROGUE MODE // 2024.05.20 @ 06:14:57 Player: Some Pennies Result: Destroyed by L-31 Rogue with Katana Performance ------------- Evolutions (0) 0 Regions Visited (4) 800 Robots Destroyed (37) 185 Value Destroyed (862) 862 Prototype IDs (39) 780 Alien Tech Used (0) 0 Bonus (300) 300 TOTAL SCORE: 2927 Bonus ------- Aligned with FarCom 300 Cogmind --------- Core Integrity 0/250 Matter 196/300 Energy 98/100 System Corruption 1% Temperature Cool (0) Movement Treading (480) Ox4 Location -9/Mines Parts ------- > --- POWER (1) -------- (None) > --- PROPULSION (2) --- Light Treads > --- UTILITY (2) ------ Huge Storage Unit Light Armor Plating > --- WEAPON (2) ------- Light Assault Rifle Heavy Assault Rifle > --- INVENTORY (25) --- Ion Engine Light Ion Engine Heat Sink Improved Heat Sink Medium Storage Unit Cargo Storage Unit Machine Analyzer Signal Interpreter Improved Terrain Scanner Seismic Detector Light Armor Plating Recalibrator Particle Cannon Particle Cannon Particle Cannon Particle Cannon AWS/Autocannon Grenade Launcher Rocket Launcher Datajack Hammer Peak State ------------ > --- POWER ------------ Improved Ion Engine > --- PROPULSION ------- Light Treads Light Treads > --- UTILITY ---------- Improved Heat Sink Huge Storage Unit > --- WEAPON ----------- Particle Cannon Particle Cannon > --- INVENTORY -------- Light Ion Engine Heat Sink Improved Heat Sink Medium Storage Unit Machine Analyzer Signal Interpreter Improved Terrain Scanner Seismic Detector Light Armor Plating Light Armor Plating Recalibrator Particle Cannon Particle Cannon Light Assault Rifle Heavy Assault Rifle Grenade Launcher Rocket Launcher Datajack Hammer [Rating: 15] Favorites ----------- Power Improved Ion Engine Engine Improved Ion Engine Propulsion Light Treads Treads Light Treads Wheel Compact Wheel Utility Huge Storage Unit Device Heat Sink Storage Huge Storage Unit Protection Light Armor Plating Weapon Particle Cannon Energy Gun Small Laser Energy Cannon Particle Cannon Ballistic Gun Assault Rifle Launcher Rocket Launcher Impact Weapon Hammer Special Melee Weapon Datajack Build | -11 -10 -10 -10 -9 ------- Run | Yrd Mat Min Exi Min Slots Evolved . | . . . . . Power . | . . . . . Propulsion . | . . . . . Utility . | . . . . . Weapon . | . . . . . Parts Attached 37 | 7 16 5 2 7 Power 3 | 1 1 1 . . Engine 3 | 1 1 1 . . Core . | . . . . . Reactor . | . . . . . Propulsion 10 | 3 3 1 . 3 Treads 8 | 2 2 1 . 3 Leg . | . . . . . Wheel 2 | 1 1 . . . Hover . | . . . . . Flight . | . . . . . Utility 12 | 1 7 3 . 1 Device 7 | . 5 2 . . Storage 4 | 1 2 1 . . Processor . | . . . . . Hackware . | . . . . . Protection 1 | . . . . 1 Artifact . | . . . . . Weapon 12 | 2 5 . 2 3 Energy Gun 1 | 1 . . . . Energy Cannon 4 | . 4 . . . Ballistic Gun 3 | 1 . . . 2 Ballistic Cannon . | . . . . . Launcher 1 | . . . . 1 Special Weapon . | . . . . . Impact Weapon 1 | . . . 1 . Slashing Weapon . | . . . . . Piercing Weapon . | . . . . . Special Melee Weapon 2 | . 1 . 1 . Unidentified Prototypes . | . . . . . Parts Lost 6 | . 2 2 . 2 Power 2 | . 1 . . 1 Propulsion 2 | . . 1 . 1 Utility 2 | . 1 1 . . Weapon . | . . . . . Highest Loss Streak 2 | . 1 2 . 1 To Critical Strikes . | . . . . . Average Slot Usage (%) 91 | . 94 94 85 82 Engine 13 | . 13 14 14 12 Treads 21 | . 27 23 14 13 Device 11 | . 10 14 14 . Storage 14 | . 14 14 14 14 Protection 1 | . . . . 14 Energy Cannon 14 | . 11 28 3 . Ballistic Gun 5 | . 12 . . 27 Impact Weapon 3 | . . . 12 . Special Melee Weapon 4 | . 3 . 12 . Naked Turns . | . . . . . Heaviest Build 96 | 11 89 96 96 94 Greatest Support 40 | 40 40 40 20 40 Greatest Overweight (x) 31 | . 2 4 4 31 Average Overweight (x) 1 | . . 2 4 7 Largest Inventory Capacity 25 | 8 25 25 25 25 Average Capacity 21 | 7 15 24 25 25 Most Carried 25 | 6 15 21 24 25 Average Carried 17 | 4 10 19 22 24 Final Capacity 25 | 8 15 25 25 25 Final Carried 24 | 6 15 21 24 24 Class Distribution -------------------- 97% | Mutant Dominant Class ---------------- Mutant | -10/Materials Mutant | -10/Mines Mutant | -10/Exiles Mutant | -9/Mines Resources | -11 -10 -10 -10 -9 ----------- Run | Yrd Mat Min Exi Min Matter Collected 817 | 198 401 126 . 92 Remotely . | . . . . . Salvage Created 1480 | 26 764 563 . 127 Parts 81 | 3 40 31 . 7 Haulers Intercepted 1 | . 1 . . . Recyclers Shooed 5 | 1 3 1 . . Parts Field Recycled . | . . . . . Retrieved Matter . | . . . . . Parts Self-Destructed . | . . . . . Prevented . | . . . . . Kills | -11 -10 -10 -10 -9 ------- Run | Yrd Mat Min Exi Min Combat Hostiles Destroyed 23 | . 11 9 . 3 Guns 5 | . 3 . . 2 Cannons 17 | . 8 9 . . AOE 1 | . . . . 1 Classes Destroyed 11 | 1 8 1 . 1 Worker 2 | . 1 1 . . Tunneler 1 | 1 . . . . Hauler 1 | . 1 . . . Recycler 6 | . 3 3 . . Mechanic 1 | . 1 . . . Operator 1 | . 1 . . . Watcher 2 | . 2 . . . Swarmer 6 | . 3 3 . . Grunt 14 | . 8 4 . 2 Brawler 1 | . . . . 1 Sentry 2 | . . 2 . . Best Kill Streak 3 | 1 3 3 . 2 Combat Bots Only 2 | . 2 2 . 2 Max Kills in Single Turn 1 | 1 1 1 . 1 Gunslinging . | . . . . . Exploded 1 | . . . . 1 Melee . | . . . . . Uniques/NPCs Destroyed . | . . . . . Combat | -11 -10 -10 -10 -9 -------- Run | Yrd Mat Min Exi Min Hostile Shots Fired 114 | . 38 51 . 25 Missed 15 | . 7 5 . 3 Damage Taken 1320 | . 445 529 . 346 Core 272 | . 73 79 . 120 Absorbed by Shields . | . . . . . Regen/Repaired (Parts) 117 | . 117 . . . Core Remaining (%) 100 | 100 . . . . Volleys Fired 106 | 3 54 29 . 20 Largest 2 | 2 2 2 . 2 Hottest 136 | 60 136 136 . 56 Shots Fired 210 | 6 106 58 . 40 Gun 95 | 6 51 . . 38 Cannon 113 | . 55 58 . . Launcher 2 | . . . . 2 Special . | . . . . . Kinetic 92 | 3 51 . . 38 Thermal 116 | 3 55 58 . . Explosive 2 | . . . . 2 Electromagnetic . | . . . . . Robot Hit Streak 10 | 2 7 10 . 4 Robot Miss Streak 11 | 3 5 11 . 3 Penetration Max . | . . . . . Secondary Targets . | . . . . . Shots Hit Robots 116 | 2 53 30 5 26 Core Hits 49 | 1 24 15 . 9 Critical Kills . | . . . . . Critical Parts Destroyed . | . . . . . Critical Strikes . | . . . . . Melee Attacks 6 | . 1 . 5 . Impact . | . . . . . Slashing . | . . . . . Piercing . | . . . . . Sneak Attacks 5 | . 1 . 4 . Combat Hostiles . | . . . . . Follow-up Attacks . | . . . . . Damage Inflicted 1847 | 22 863 614 . 348 Guns 559 | 22 250 . . 287 Cannons 1213 | . 599 614 . . Explosions 61 | . . . . 61 Melee . | . . . . . Ramming 14 | . 14 . . . Kinetic 547 | 10 250 . . 287 Thermal 1225 | 12 599 614 . . Explosive 61 | . . . . 61 Electromagnetic . | . . . . . Impact . | . . . . . Slashing . | . . . . . Piercing . | . . . . . Highest Corruption 1 | . 1 1 1 1 Average Corruption 1 | . 1 1 1 1 Corruption Purged . | . . . . . Corruption Blocked . | . . . . . Effects 28 | . 6 13 7 2 Message Errors 9 | . 2 5 2 . Matter Fused 8 | . 3 3 2 . Heat Flow Errors 1 | . . . 1 . Energy Discharges 4 | . 1 2 . 1 Parts Rejected 2 | . . 1 . 1 Data Loss (minor) 2 | . . . 2 . Misfires 1 | . . 1 . . Weapon Failures 1 | . . 1 . . Overload Shots . | . . . . . Overflow Damage 14 | . . 10 . 4 Projectiles 10 | . . 10 . . Explosions 4 | . . . . 4 Melee . | . . . . . Knockbacks . | . . . . . Impact . | . . . . . Kinetic . | . . . . . Secondary . | . . . . . Self-Inflicted Damage 42 | . 4 . . 38 Shots 2 | . . . . 2 Rammed 2 | . 2 . . . Targets Rammed 2 | . 2 . . . Kicked . | . . . . . Crushed . | . . . . . Highest Temperature 338 | . 252 338 105 30 Average Temperature 87 | . 59 143 61 13 Received Heat Transfer 468 | . 198 156 . 114 Effects 2 | . . 2 . . Energy Bleed 1 | . . 1 . . Matter Decay 1 | . . 1 . . Siege Activations . | . . . . . Robots Corrupted . | . . . . . Combat Hostiles . | . . . . . Parts Fried . | . . . . . Impact Corruptions . | . . . . . Robots Melted . | . . . . . Combat Hostiles . | . . . . . Parts Melted 2 | . . 2 . . Heat Transferred 2393 | 25 1258 1110 . . Parts Sabotaged . | . . . . . Parts Stolen . | . . . . . Parts Stripped . | . . . . . Power Chain Reactions . | . . . . . Alert | -11 -10 -10 -10 -9 ------- Run | Yrd Mat Min Exi Min Peak Influence 166 | 5 166 145 . 66 Initial 21 | . 3 21 . . Average 57 | 3 62 56 . 53 Maximum Alert Level . | . . . . . Low Security (%) 100 | 100 100 100 . 100 Level 1 . | . . . . . Level 2 . | . . . . . Level 3 . | . . . . . Level 4 . | . . . . . Level 5 . | . . . . . High Security . | . . . . . Max Security . | . . . . . Squads Dispatched 2 | . 2 . . . Investigation 1 | . 1 . . . Extermination . | . . . . . Reinforcement 1 | . 1 . . . Assault . | . . . . . Garrison . | . . . . . Intercept . | . . . . . Searches Triggered . | . . . . . Construction Impeded . | . . . . . Haulers Reinforced . | . . . . . Active Scanning Responses . | . . . . . Cargo Convoy Interrupts . | . . . . . Stealth | -11 -10 -10 -10 -9 --------- Run | Yrd Mat Min Exi Min Distress Signals 3 | . 3 . . . Communications Jammed . | . . . . . Distress Signals . | . . . . . Times Spotted 30 | . 16 9 . 5 Peak Tracking Total 4 | . 4 3 . 3 Tactical Retreats 2 | . 2 . . . Traps | -11 -10 -10 -10 -9 ------- Run | Yrd Mat Min Exi Min Traps Triggered 2 | . 2 . . . Indirectly . | . . . . . Trap Hack Attempts 34 | . 34 . . . Triggered . | . . . . . Disarmed 8 | . 8 . . . Reprogrammed . | . . . . . Reused . | . . . . . Traps Extracted . | . . . . . Installed . | . . . . . Triggered . | . . . . . Machines | -11 -10 -10 -10 -9 ---------- Run | Yrd Mat Min Exi Min Machines Disabled 4 | . . 4 . . Max in Single Turn 1 | . . 1 . . Machines Repaired . | . . . . . Machines Dismantled . | . . . . . Machines Sabotaged . | . . . . . Overloaded Fab Kills . | . . . . . Hacking | -11 -10 -10 -10 -9 --------- Run | Yrd Mat Min Exi Min Machines Accessed 12 | . 9 1 2 . Terminals 7 | . 6 1 . . Fabricators . | . . . . . Repair Stations 1 | . 1 . . . Recycling Units 2 | . 2 . . . Scanalyzers . | . . . . . Garrison Access . | . . . . . Total Hacks 25 | . 21 2 2 . Successful 9 | . 7 . 2 . Failed 16 | . 14 2 . . Catastrophic 3 | . 3 . . . Database Lockouts . | . . . . . Manual 10 | . 7 2 1 . Terminals 19 | . 17 2 . . Fabricators . | . . . . . Repair Stations 2 | . 2 . . . Recycling Units 2 | . 2 . . . Scanalyzers . | . . . . . Garrison Access . | . . . . . Terminal Hacks 5 | . 3 . 2 . Record 1 | . . . 1 . Prototype ID Bank 1 | . 1 . . . Locate Traps 1 | . 1 . . . Disarm Traps 1 | . 1 . . . Derelict Proto ID Bank 1 | . . . 1 . Fabricator Hacks . | . . . . . Repair Station Hacks 2 | . 2 . . . Scan Component 1 | . 1 . . . Repair 1 | . 1 . . . Recycling Unit Hacks 1 | . 1 . . . Retrieve Components 1 | . 1 . . . Scanalyzer . | . . . . . Garrison Access Hacks . | . . . . . Unauthorized Hacks 1 | . 1 . . . Terminals 1 | . 1 . . . Assimilate 1 | . 1 . . . Fabricators . | . . . . . Repair Stations . | . . . . . Recycling Units . | . . . . . Scanalyzers . | . . . . . Garrison Access . | . . . . . Data Cores Recovered . | . . . . . Used . | . . . . . Hacking Detections 10 | . 9 1 . . Full Trace Events . | . . . . . Feedback Events . | . . . . . Feedback Blocked . | . . . . . Robot Schematics Acquired . | . . . . . Robots Built . | . . . . . Authchips . | . . . . . Time . | . . . . . Total Robot Build Rating . | . . . . . Part Schematics Acquired . | . . . . . Parts Built . | . . . . . Authchips . | . . . . . Time . | . . . . . Total Part Build Rating . | . . . . . Parts Repaired 1 | . 1 . . . Time 26 | . 26 . . . Parts Recycled . | . . . . . Recycled Matter . | . . . . . Retrieved Matter . | . . . . . Retrieved Components 7 | . 7 . . . Parts Scanalyzed . | . . . . . Part Schematics Acquired . | . . . . . Parts Damaged . | . . . . . Bothacking | -11 -10 -10 -10 -9 ------------ Run | Yrd Mat Min Exi Min Used RIF Installer . | . . . . . Robots Hacked 5 | . 1 . 4 . Non-combat 4 | . 1 . 3 . Combat 1 | . . . 1 . Robot Hacks Applied 5 | . 1 . 4 . parse_system 5 | . 1 . 4 . Relay Couplers Released . | . . . . . Fabnet Peak Effective % . | . . . . . Robots Rewired . | . . . . . Allies Hacked . | . . . . . Hacks Repelled . | . . . . . Allies | -11 -10 -10 -10 -9 -------- Run | Yrd Mat Min Exi Min Total Allies . | . . . . . Largest Group . | . . . . . Highest-Rated Group . | . . . . . Highest-Rated Ally . | . . . . . Total Orders . | . . . . . Ally Attacks . | . . . . . Total Damage . | . . . . . Kills . | . . . . . Allies Corrupted . | . . . . . Allies Melted . | . . . . . Intel | -11 -10 -10 -10 -9 ------- Run | Yrd Mat Min Exi Min Robot Analysis Total . | . . . . . Derelict Logs Recovered 1 | . . 1 . . Drone Launches . | . . . . . Drone Recoveries . | . . . . . Exploration | -11 -10 -10 -10 -9 ------------- Run | Yrd Mat Min Exi Min Turns Passed 4579 | 92 1369 1591 1202 325 Spaces Moved 1402 | 48 651 409 249 45 Core 10 | 1 . . . 9 Treads 1354 | 29 631 409 249 36 Legs . | . . . . . Wheels 38 | 18 20 . . . Hover . | . . . . . Flight . | . . . . . Fastest Speed 50 | 50 100 160 480 320 Average Speed 292 | 135 169 359 480 576 Slowest Speed 1600 | 160 320 480 480 1600 Overloaded Moves . | . . . . . Propulsion Burnouts . | . . . . . Robots Hopped . | . . . . . Cave-ins Triggered . | . . . . . Exploration Rate (%) 53 | 4 98 90 64 12 Regions Visited 4 Branch Regions 3 Pre-discovered Areas 1 | . . . 1 . Known Exits Taken . | . . . . . Unknown Exits Taken 4 | 1 1 1 1 . Scrap Searched 1 | . . 1 . . Spaces Dug . | . . . . . Terrain Destroyed 20 | . . . . 20 Melee . | . . . . . Projectile . | . . . . . AOE 20 | . . . . 20 Terrain Rammed . | . . . . . Walls Destroyed . | . . . . . Machines Disabled . | . . . . . Actions | -11 -10 -10 -10 -9 --------- Run | Yrd Mat Min Exi Min Total 1680 | 69 808 473 256 74 Wait 42 | . 24 18 . . Move 1398 | 47 650 408 248 45 Hop . | . . . . . Pick Up 44 | 12 19 10 1 2 Fast Attach 3 | . 2 . . 1 Attach 15 | 6 5 2 . 2 Detach . | . . . . . Swap 19 | 1 9 3 2 4 Drop 11 | . 8 3 . . Fire 106 | 3 54 29 . 20 Melee 6 | . 1 . 5 . Ram 1 | . 1 . . . Kick . | . . . . . Crush 1 | . 1 . . . Escape Stasis . | . . . . . Rewire . | . . . . . Trap 34 | . 34 . . . Miscellaneous . | . . . . . Route ------- -11/Scrapyard -10/Materials (discovered 4 exits: [*Mat x3] / *Min) -10/Mines (discovered 4 exits: [*Mat x2] / *Exi / [*Sub]) -10/Exiles -9/Mines History --------- Turn | Location | Event 12 | -11/Scrapyard | Discovered new exit (range 16) 93 | -11/Scrapyard | Entered Materials 300 | -10/Materials | Discovered new exit (range 8) 318 | -10/Materials | Build established: Mutant 771 | -10/Materials | Discovered new exit (range 10) 1058 | -10/Materials | Repaired Lgt. Treads 1170 | -10/Materials | Discovered new exit (range 7) 1267 | -10/Materials | Discovered new exit (range 11) 1462 | -10/Materials | Entered Mines 1462 | -10/Mines | Discovered new exit (range 9) 1481 | -10/Mines | Received a Rocket Launcher from a helpful Derelict 2040 | -10/Mines | Learned Materials garrison access intel 2098 | -10/Mines | Discovered new exit (range 6) 2104 | -10/Mines | Core integrity fell below 50% 2386 | -10/Mines | Discovered new exit (range 6) 3033 | -10/Mines | Deemed a non-threat by the Exiles lab entrance 3033 | -10/Mines | Discovered new exit (range 5) 3053 | -10/Mines | Entered Exiles 3173 | -10/Exiles | Met 8R-AWN 3293 | -10/Exiles | Met EX-HEX 3493 | -10/Exiles | Met EX-BIN 3552 | -10/Exiles | Aligned with FarCom system 3557 | -10/Exiles | Given EX-Vault access code 3667 | -10/Exiles | Opened EX-Vault 3701 | -10/Exiles | Found AWS/Autocannon 3793 | -10/Exiles | Warned to stay clear of 0b10 Research branches 3932 | -10/Exiles | Met EX-DEC 4054 | -10/Exiles | Learned location of Zion (-6) 4212 | -10/Exiles | Discovered new exit (range 10) 4255 | -10/Exiles | Left Exiles lab with AWS/Autocannon 4255 | -10/Exiles | Entered Mines 4266 | -9/Mines | Met a Derelict bent on vengeance 4562 | -9/Mines | Core integrity fell below 20% 4580 | -9/Mines | Destroyed by L-31 Rogue with Katana Last Messages --------------- 04440_ K-01 Serf collects debris. 04440_ U-05 Engineer lays Concrete. 04444_ K-01 Serf collects debris. 04444_ U-05 Engineer lays Concrete. 04448_ K-01 Serf collects debris. 04448_ U-05 Engineer lays Concrete. 04451_ System corrupted: Energy discharge (-92). 04451_ U-05 Engineer lays Concrete. 04451_ K-01 Serf collects debris. 04452_ U-05 Engineer lays Concrete. 04454_ U-05 Engineer builds a Wall. 04459_ K-01 Serf collects debris. 04465_ U-05 Engineer lays Concrete. 04476_ K-01 Serf collects debris. 04545_ Imp. Ion Engine destroyed. 04558_ System corrupted: Lgt. Treads rejected. 04561_ Acquired Lgt. Treads. 04563_ G-34 Mercenary destroyed. 04568_ K-01 Serf collects debris. 04575_ Lgt. Treads severed. Map ----- +----------------------------------------------------+ | | | | | | | | | | | | | | | | | | | | | | | | | | | | | | | | | | | | | | | ?????????????????????????????????????????????????? | | ?????????????????????????????????????????????????? | | ????????????????????????##???????????###?????????? | | ???????????????????????? #????????## ##????????? | | ????????????????????????# #???????## ##???????? | | ????????????????????????# #??????## ####????? | | ????????????????????????#@#??????# ###??? | | ????????????????????????#l#?????## #??? | | ????????????????????????# #?????# #??? | | ????????????????????????# #?????# #??? | | ????????????????????????# #??????# #????? | | ????????????????????????# #?????## ##????? | | ????????????????????????#g#?????## # ###?????? | | ????????????????????????# #????## # # ##???????? | | ????????????????????????# #???## ## # #???????? | | ??????????????#####?????#=#??## ### ###???????? | | ??????????????# ##%##?# ## ##??????? | | ??????????????????# #?# ## [ ##?????? | | ??????????????????### ### #?# #### = #?????? | | ????????????????????# ???# ### ##??## ! #?????? | | ????????????????????#????# #????## #????? | | ?????????????????????????#### #????## #????? | | ????????????????????????????# #?????? ##????? | | ????????????????????????????## ##??????# ##?????? | | ?????????????????????????????###????????###??????? | | ?????????????????????????????????????????????????? | | ?????????????????????????????????????????????????? | | ?????????????????????????????????????????????????? | | ?????????????????????????????????????????????????? | | ?????????????????????????????????????????????????? | | ?????????????????????????????????????????????????? | +----------------------------------------------------+ Best States ------------- Heat Dissipation 39 Energy Generation 12 Energy Capacity 265 Matter Stores 300 Matter Capacity 300 Sight Range 16 Terrain Scan Range 16 Terrain Scan Density 10 Armor Coverage 150 Evasion (%) 40 Recoil Reduction 2 Item Schematics ----------------- None Robot Schematics ------------------ None Fabricated ------------ Nothing Alien Tech Used ----------------- None Achievements -------------- None Challenges ------------ None Game ------ Seed ResetMetafieldBoregun Manual? 0 Play Time 00:21:56 Cumulative 69.1 hours Start 2024.05.20 @ 05:54:10 End 2024.05.20 @ 06:14:57 Sessions 1 Manual Loads 0 Difficulty Rogue Special Mode None Game No. 69 Rogue 64 Adventurer 5 Explorer 0 Win Type - Total 0 Types 0/0/0/0/0/0/0/0/0 Lore% 32 Gallery% 43 Achievement% 28 Wizard Run 0 Options --------- Layout 2 ASCII 0 Keyboard 0 Movement Mouse Keybinds 0 Fullscreen 2 Font 24/Smallcaps Map View 50x44 Zoom Use 0% Tactical HUD 1 Map Filters NONE Filters NONE Steam 1 RUN: 562b113e-833f-4341-a5af-ce5799c763df